[Event "*** Titled Tuesday Blitz"]
[Site "Chess.com"]
[Date "2019.04.02"]
[Round "1"]
[White "amintabatabaei"]
[Black "Vegan4future"]
[Result "0-1"]
[WhiteElo "2902"]
[BlackElo "2509"]
[TimeControl "180+2"]
[EndTime "14:08:41 PDT"]
[Termination "Vegan4future won by resignation"]

1. Nf3 {[%clk 0:03:01.9]} 1... Nc6 {[%clk 0:02:59.6]} 2. e4 {[%clk 0:03:01.3]}
2... f5 {[%clk 0:03:00.3]} 3. exf5 {[%clk 0:03:00.7]} 3... d5 {[%clk 0:03:01.4]}
4. Nh4 {[%clk 0:02:42.6]} 4... Nh6 {[%clk 0:03:01.8]} 5. Qh5+ {[%clk 0:02:42.3]}
5... Nf7 {[%clk 0:02:53.1]} 6. Bb5 {[%clk 0:02:41.8]} 6... g6 {[%clk 0:02:50.1]}
7. Qf3 {[%clk 0:02:27.8]} 7... g5 {[%clk 0:02:34.7]} 8. Nc3 {[%clk 0:02:11.2]}
8... gxh4 {[%clk 0:02:31.9]} 9. Nxd5 {[%clk 0:02:12.2]} 9... h5 {[%clk
0:02:11.7]} 10. O-O {[%clk 0:02:07.9]} 10... Nd6 {[%clk 0:01:57.1]} 11. Bxc6+
{[%clk 0:01:58.4]} 11... bxc6 {[%clk 0:01:59]} 12. Ne3 {[%clk 0:02:00.3]} 12...
Qd7 {[%clk 0:01:54.8]} 13. Re1 {[%clk 0:01:51.9]} 13... Bb7 {[%clk 0:01:42.5]}
14. d3 {[%clk 0:01:39.9]} 14... O-O-O {[%clk 0:01:43.3]} 15. Bd2 {[%clk
0:01:40.2]} 15... Bg7 {[%clk 0:01:43.9]} 16. Bc3 {[%clk 0:01:40.8]} 16... Rdg8
{[%clk 0:01:42.4]} 17. Qh3 {[%clk 0:01:30.6]} 17... c5 {[%clk 0:01:36.2]} 18. f3
{[%clk 0:01:21.7]} 18... Bd4 {[%clk 0:01:31.8]} 19. Kh1 {[%clk 0:01:16.1]} 19...
Rh7 {[%clk 0:01:24.4]} 20. Bd2 {[%clk 0:00:58.6]} 20... Rhg7 {[%clk 0:01:22.8]}
21. Re2 {[%clk 0:00:53.2]} 21... Bxe3 {[%clk 0:01:19.6]} 22. Bxe3 {[%clk
0:00:55.1]} 22... Nxf5 {[%clk 0:01:21]} 23. Bxc5 {[%clk 0:00:52.8]} 23... Ng3+
{[%clk 0:01:02.2]} 24. hxg3 {[%clk 0:00:45.1]} 24... Qxh3+ {[%clk 0:01:03.4]}
25. gxh3 {[%clk 0:00:47]} 25... Bxf3+ {[%clk 0:01:04]} 26. Kg1 {[%clk
0:00:48.7]} 26... Bxe2 {[%clk 0:00:41.5]} 27. Kf2 {[%clk 0:00:49.8]} 27... hxg3+
{[%clk 0:00:38.7]} 28. Kxe2 {[%clk 0:00:51.1]} 28... g2 {[%clk 0:00:40.6]} 29.
Rg1 {[%clk 0:00:51.1]} 29... Kd7 {[%clk 0:00:39.6]} 30. Bxa7 {[%clk 0:00:49.5]}
30... Ra8 {[%clk 0:00:40.1]} 31. Bd4 {[%clk 0:00:49.8]} 31... Rg6 {[%clk
0:00:40.5]} 32. a3 {[%clk 0:00:50.7]} 32... Kd6 {[%clk 0:00:41.5]} 33. c4 {[%clk
0:00:50.4]} 33... e5 {[%clk 0:00:42.3]} 34. Be3 {[%clk 0:00:49.5]} 34... c5
{[%clk 0:00:42.4]} 35. h4 {[%clk 0:00:48.8]} 35... Rg4 {[%clk 0:00:42.6]} 36. b4
{[%clk 0:00:43.4]} 36... Rxa3 {[%clk 0:00:41.3]} 37. Bxc5+ {[%clk 0:00:43.9]}
37... Ke6 {[%clk 0:00:41.2]} 38. Be3 {[%clk 0:00:27.7]} 38... Ra2+ {[%clk
0:00:41.9]} 39. Bd2 {[%clk 0:00:29.1]} 39... e4 {[%clk 0:00:40.6]} 40. d4 {[%clk
0:00:28.6]} 40... Rg3 {[%clk 0:00:36.3]} 41. d5+ {[%clk 0:00:26.3]} 41... Kf5
{[%clk 0:00:37.3]} 42. Kd1 {[%clk 0:00:16.8]} 42... Kg4 {[%clk 0:00:36.7]} 43.
d6 {[%clk 0:00:16]} 43... Kh3 {[%clk 0:00:35.7]} 44. Bc1 {[%clk 0:00:05.1]}
44... Rd3+ {[%clk 0:00:36.2]} 0-1

[Event "*** Titled Tuesday Blitz"]
[Site "Chess.com"]
[Date "2019.04.02"]
[Round "1"]
[White "GM_RobertoMogranzini"]
[Black "Fandorine"]
[Result "0-1"]
[WhiteElo "2467"]
[BlackElo "2855"]
[TimeControl "180+2"]
[EndTime "14:08:41 PDT"]
[Termination "Fandorine won by resignation"]

1. Nf3 {[%clk 0:02:59.9]} 1... Nf6 {[%clk 0:02:59.5]} 2. b3 {[%clk 0:03:01.8]}
2... g6 {[%clk 0:02:59.7]} 3. Bb2 {[%clk 0:03:03.7]} 3... Bg7 {[%clk 0:03:01.4]}
4. c4 {[%clk 0:03:04.5]} 4... O-O {[%clk 0:03:01.3]} 5. g3 {[%clk 0:03:05.8]}
5... d6 {[%clk 0:03:01.8]} 6. Bg2 {[%clk 0:03:07.1]} 6... c5 {[%clk 0:02:59.8]}
7. O-O {[%clk 0:03:07.4]} 7... e5 {[%clk 0:03:00.5]} 8. Nc3 {[%clk 0:03:05]}
8... Nc6 {[%clk 0:03:01.7]} 9. e3 {[%clk 0:03:05]} 9... Re8 {[%clk 0:02:36.5]}
10. d3 {[%clk 0:03:05.3]} 10... h6 {[%clk 0:02:35.7]} 11. Nd2 {[%clk 0:02:51.5]}
11... Be6 {[%clk 0:02:36.6]} 12. Nd5 {[%clk 0:02:51.6]} 12... Bxd5 {[%clk
0:02:26.3]} 13. cxd5 {[%clk 0:02:49.7]} 13... Nb4 {[%clk 0:02:27.7]} 14. Ne4
{[%clk 0:02:16.1]} 14... Nfxd5 {[%clk 0:02:25.2]} 15. a3 {[%clk 0:02:06.2]}
15... Nc6 {[%clk 0:02:25.9]} 16. b4 {[%clk 0:01:58.9]} 16... cxb4 {[%clk
0:02:11.4]} 17. axb4 {[%clk 0:02:00.8]} 17... Ndxb4 {[%clk 0:02:09.6]} 18. Qb3
{[%clk 0:02:00.7]} 18... a5 {[%clk 0:02:07.5]} 19. Ba3 {[%clk 0:01:49.4]} 19...
d5 {[%clk 0:01:25.3]} 20. Nc5 {[%clk 0:01:39.5]} 20... b6 {[%clk 0:01:22.1]} 21.
Na4 {[%clk 0:01:35.9]} 21... e4 {[%clk 0:01:22.5]} 22. d4 {[%clk 0:01:35.7]}
22... Rc8 {[%clk 0:01:17.4]} 23. Bh3 {[%clk 0:01:35.7]} 23... Rb8 {[%clk
0:01:17.3]} 24. Rfc1 {[%clk 0:01:35.2]} 24... Bf8 {[%clk 0:01:09.1]} 25. Nc3
{[%clk 0:01:32.3]} 25... Nd3 {[%clk 0:00:47.9]} 26. Rcb1 {[%clk 0:01:25.6]}
26... Bxa3 {[%clk 0:00:43.2]} 27. Rxa3 {[%clk 0:01:17.6]} 27... Ncb4 {[%clk
0:00:43.8]} 28. Bf1 {[%clk 0:01:13.3]} 28... Rc8 {[%clk 0:00:38.3]} 29. Na4
{[%clk 0:00:47]} 29... Qf6 {[%clk 0:00:32.2]} 30. Bxd3 {[%clk 0:00:42.1]} 30...
exd3 {[%clk 0:00:33.4]} 31. Nc3 {[%clk 0:00:34.4]} 31... Qf3 {[%clk 0:00:33.4]}
32. Raa1 {[%clk 0:00:25.3]} 32... d2 {[%clk 0:00:26.3]} 33. Nd1 {[%clk
0:00:25.8]} 33... Qe2 {[%clk 0:00:21.7]} 34. Qa4 {[%clk 0:00:25.2]} 34... Re6
{[%clk 0:00:19.8]} 35. Qd7 {[%clk 0:00:24.5]} 35... Rec6 {[%clk 0:00:15.3]} 36.
Kg2 {[%clk 0:00:20.6]} 36... Rc1 {[%clk 0:00:15.6]} 37. h4 {[%clk 0:00:16.6]}
37... Qxd1 {[%clk 0:00:08.7]} 38. Rxc1 {[%clk 0:00:16.1]} 38... dxc1=Q {[%clk
0:00:09.7]} 39. Rxc1 {[%clk 0:00:17.1]} 39... Qxc1 {[%clk 0:00:10.6]} 0-1

[Event "*** Titled Tuesday Blitz"]
[Site "Chess.com"]
[Date "2019.04.02"]
[Round "1"]
[White "PaulfromSPb"]
[Black "Phelathegreat"]
[Result "1-0"]
[WhiteElo "2644"]
[BlackElo "2325"]
[TimeControl "180+2"]
[EndTime "14:08:42 PDT"]
[Termination "PaulfromSPb won by resignation"]

1. d4 {[%clk 0:03:00.8]} 1... Nf6 {[%clk 0:02:59.6]} 2. Bf4 {[%clk 0:03:01]}
2... c5 {[%clk 0:02:58.8]} 3. e3 {[%clk 0:03:01.1]} 3... Qb6 {[%clk 0:02:59.4]}
4. Nc3 {[%clk 0:03:00.3]} 4... cxd4 {[%clk 0:03:00.8]} 5. exd4 {[%clk
0:03:00.9]} 5... d6 {[%clk 0:03:01.9]} 6. Nf3 {[%clk 0:02:55.7]} 6... g6 {[%clk
0:03:03.1]} 7. Rb1 {[%clk 0:02:54.6]} 7... Bg7 {[%clk 0:03:03.7]} 8. Be2 {[%clk
0:02:55.3]} 8... O-O {[%clk 0:03:05.1]} 9. O-O {[%clk 0:02:55]} 9... Nc6 {[%clk
0:03:05.2]} 10. h3 {[%clk 0:02:51.1]} 10... a5 {[%clk 0:03:03.6]} 11. d5 {[%clk
0:02:49.1]} 11... Nb4 {[%clk 0:03:00]} 12. Be3 {[%clk 0:02:49.7]} 12... Qd8
{[%clk 0:02:55.5]} 13. a3 {[%clk 0:02:48.9]} 13... Na6 {[%clk 0:02:56.4]} 14.
Nd4 {[%clk 0:02:45.2]} 14... Nc5 {[%clk 0:02:55.3]} 15. Bf3 {[%clk 0:02:38.6]}
15... a4 {[%clk 0:02:51.9]} 16. Qd2 {[%clk 0:02:28.7]} 16... Bd7 {[%clk
0:02:52]} 17. Bh6 {[%clk 0:02:28.7]} 17... Qb6 {[%clk 0:02:47.2]} 18. Bxg7
{[%clk 0:02:25.7]} 18... Kxg7 {[%clk 0:02:49.1]} 19. Rfe1 {[%clk 0:02:27.3]}
19... Rfe8 {[%clk 0:02:49.9]} 20. Re3 {[%clk 0:02:21.4]} 20... Rac8 {[%clk
0:02:37.9]} 21. Kh2 {[%clk 0:02:17]} 21... e5 {[%clk 0:02:23.2]} 22. dxe6 {[%clk
0:02:15.9]} 22... fxe6 {[%clk 0:02:24.5]} 23. Nde2 {[%clk 0:02:08.2]} 23... Rcd8
{[%clk 0:02:04.9]} 24. Nf4 {[%clk 0:01:55]} 24... Bc6 {[%clk 0:01:56.5]} 25.
Bxc6 {[%clk 0:01:39.6]} 25... bxc6 {[%clk 0:01:58]} 26. Nd3 {[%clk 0:01:31.8]}
26... Qa5 {[%clk 0:01:46.7]} 27. Rbe1 {[%clk 0:01:28]} 27... e5 {[%clk
0:01:30.2]} 28. Nxc5 {[%clk 0:01:25.1]} 28... dxc5 {[%clk 0:01:27.8]} 29. Qe2
{[%clk 0:01:20.5]} 29... Nd7 {[%clk 0:01:23.1]} 30. Ne4 {[%clk 0:01:18.2]} 30...
Rf8 {[%clk 0:01:15.8]} 31. Ng5 {[%clk 0:01:09.8]} 31... Rf6 {[%clk 0:01:16.5]}
32. Rd1 {[%clk 0:01:07.6]} 32... h6 {[%clk 0:01:10.2]} 33. Ne4 {[%clk
0:01:04.3]} 33... Rff8 {[%clk 0:01:05.1]} 34. Nd6 {[%clk 0:00:59.6]} 34... Qc7
{[%clk 0:01:01.4]} 35. Nc4 {[%clk 0:00:58]} 35... Rde8 {[%clk 0:01:00]} 36. Kg1
{[%clk 0:00:57.7]} 36... Rf5 {[%clk 0:01:00.9]} 37. Nd6 {[%clk 0:00:57.2]} 37...
Ref8 {[%clk 0:01:02.2]} 38. Nxf5+ {[%clk 0:00:58.1]} 38... gxf5 {[%clk 0:01:04]}
39. Rg3+ {[%clk 0:00:57.2]} 39... Kh7 {[%clk 0:01:03.8]} 40. Qh5 {[%clk
0:00:57.6]} 40... Rf6 {[%clk 0:01:01.7]} 41. Qe8 {[%clk 0:00:54.8]} 41... Nf8
{[%clk 0:01:02.7]} 42. Qd8 {[%clk 0:00:53.3]} 42... Qf7 {[%clk 0:01:02.2]} 43.
Rgd3 {[%clk 0:00:49.6]} 43... Kg8 {[%clk 0:00:54.5]} 44. Rd7 {[%clk 0:00:45.1]}
44... Qg6 {[%clk 0:00:55.4]} 45. R7d6 {[%clk 0:00:45.3]} 45... Rxd6 {[%clk
0:00:49.8]} 46. Qxd6 {[%clk 0:00:45.5]} 46... Qh5 {[%clk 0:00:48.9]} 47. Re1
{[%clk 0:00:43.4]} 47... e4 {[%clk 0:00:48.4]} 48. Qxc6 {[%clk 0:00:41.7]} 1-0

[Event "*** Titled Tuesday Blitz"]
[Site "Chess.com"]
[Date "2019.04.02"]
[Round "1"]
[White "joppie2"]
[Black "FancyPlaySyndrome"]
[Result "1-0"]
[WhiteElo "2797"]
[BlackElo "2447"]
[TimeControl "180+2"]
[EndTime "14:08:44 PDT"]
[Termination "joppie2 won by resignation"]

1. e4 {[%clk 0:02:06.4]} 1... c5 {[%clk 0:02:57.9]} 2. Nf3 {[%clk 0:02:06.8]}
2... d6 {[%clk 0:02:59.3]} 3. d4 {[%clk 0:02:08.4]} 3... cxd4 {[%clk 0:03:01.2]}
4. Nxd4 {[%clk 0:02:10]} 4... Nf6 {[%clk 0:03:02.5]} 5. Nc3 {[%clk 0:02:11.7]}
5... a6 {[%clk 0:03:04.1]} 6. b4 {[%clk 0:02:13.3]} 6... g6 {[%clk 0:02:49.7]}
7. a3 {[%clk 0:02:13.7]} 7... Bg7 {[%clk 0:02:50.8]} 8. Bb2 {[%clk 0:02:14.1]}
8... O-O {[%clk 0:02:47.2]} 9. Bd3 {[%clk 0:02:15.6]} 9... d5 {[%clk 0:02:39.5]}
10. e5 {[%clk 0:01:52.2]} 10... Ng4 {[%clk 0:02:39.8]} 11. f4 {[%clk 0:01:53.2]}
11... Nc6 {[%clk 0:02:19.9]} 12. Nxc6 {[%clk 0:01:50.6]} 12... bxc6 {[%clk
0:02:21.8]} 13. h3 {[%clk 0:01:50.8]} 13... Nh6 {[%clk 0:02:15.5]} 14. O-O
{[%clk 0:01:50.6]} 14... f6 {[%clk 0:02:13.2]} 15. Na4 {[%clk 0:01:52.2]} 15...
Nf5 {[%clk 0:02:06.3]} 16. Qd2 {[%clk 0:01:45.1]} 16... a5 {[%clk 0:01:57.2]}
17. Nc5 {[%clk 0:01:42.1]} 17... Qb6 {[%clk 0:01:50]} 18. e6 {[%clk 0:01:36.6]}
18... Nd6 {[%clk 0:01:43.3]} 19. f5 {[%clk 0:01:35.5]} 19... gxf5 {[%clk
0:01:35.6]} 20. Bd4 {[%clk 0:01:30.2]} 20... axb4 {[%clk 0:01:35.9]} 21. axb4
{[%clk 0:01:07]} 21... Rxa1 {[%clk 0:01:37.8]} 22. Rxa1 {[%clk 0:01:08.1]} 22...
Qb8 {[%clk 0:01:34.9]} 23. c3 {[%clk 0:00:53.9]} 23... Ne4 {[%clk 0:01:35.3]}
24. Qe3 {[%clk 0:00:54.9]} 24... Qd6 {[%clk 0:01:31.7]} 25. Ra7 {[%clk
0:00:29.1]} 25... Bxe6 {[%clk 0:01:23.5]} 26. Nxe6 {[%clk 0:00:30]} 26... Qxe6
{[%clk 0:01:24.6]} 27. Qf3 {[%clk 0:00:30.4]} 27... Rd8 {[%clk 0:01:05.6]} 28.
Ra6 {[%clk 0:00:30.6]} 28... Qd7 {[%clk 0:01:02.4]} 29. Ra7 {[%clk 0:00:31.8]}
29... Qc8 {[%clk 0:01:01.7]} 30. Bb6 {[%clk 0:00:25.8]} 30... Rd7 {[%clk
0:00:56.1]} 31. Ba6 {[%clk 0:00:22.6]} 31... Qe8 {[%clk 0:00:50.4]} 32. Qxf5
{[%clk 0:00:21.8]} 32... Rxa7 {[%clk 0:00:50.6]} 33. Qe6+ {[%clk 0:00:21.4]}
33... Qf7 {[%clk 0:00:51.4]} 34. Qc8+ {[%clk 0:00:21.9]} 34... Qf8 {[%clk
0:00:53]} 35. Bxa7 {[%clk 0:00:21.7]} 35... Qxc8 {[%clk 0:00:53.6]} 36. Bxc8
{[%clk 0:00:23.6]} 36... Kf7 {[%clk 0:00:51.6]} 37. Bd7 {[%clk 0:00:22.8]} 37...
Nxc3 {[%clk 0:00:52.2]} 38. Bxc6 {[%clk 0:00:23.8]} 38... e6 {[%clk 0:00:53.3]}
39. b5 {[%clk 0:00:21.3]} 39... f5 {[%clk 0:00:54.7]} 40. Bf2 {[%clk 0:00:15.5]}
40... Bd4 {[%clk 0:00:52.6]} 41. b6 {[%clk 0:00:14.8]} 41... Be5 {[%clk
0:00:42.9]} 42. b7 {[%clk 0:00:15.6]} 42... d4 {[%clk 0:00:43.1]} 43. Kf1 {[%clk
0:00:15.8]} 43... d3 {[%clk 0:00:34.7]} 44. Bd4 {[%clk 0:00:17.2]} 44... d2
{[%clk 0:00:35.9]} 45. Bf3 {[%clk 0:00:18.8]} 45... Bb8 {[%clk 0:00:25.8]} 46.
Bxc3 {[%clk 0:00:19.9]} 46... e5 {[%clk 0:00:27.3]} 47. Bd5+ {[%clk 0:00:19.6]}
47... Kf6 {[%clk 0:00:27.5]} 48. Bxd2 {[%clk 0:00:20.5]} 1-0

[Event "*** Titled Tuesday Blitz"]
[Site "Chess.com"]
[Date "2019.04.02"]
[Round "1"]
[White "IMDT02"]
[Black "GMKrikor"]
[Result "0-1"]
[WhiteElo "2417"]
[BlackElo "2744"]
[TimeControl "180+2"]
[EndTime "14:08:46 PDT"]
[Termination "GMKrikor won by resignation"]

1. d4 {[%clk 0:02:59.7]} 1... Nf6 {[%clk 0:02:58.3]} 2. c4 {[%clk 0:02:58.9]}
2... e6 {[%clk 0:02:59]} 3. Nc3 {[%clk 0:03:00]} 3... Bb4 {[%clk 0:02:59.6]} 4.
e3 {[%clk 0:03:01.3]} 4... O-O {[%clk 0:03:00.1]} 5. Ne2 {[%clk 0:03:02.3]} 5...
d5 {[%clk 0:02:56.9]} 6. a3 {[%clk 0:03:02.6]} 6... Be7 {[%clk 0:02:57.4]} 7.
cxd5 {[%clk 0:02:57.8]} 7... exd5 {[%clk 0:02:58.3]} 8. Nf4 {[%clk 0:02:58.5]}
8... c6 {[%clk 0:02:58]} 9. Bd3 {[%clk 0:02:58.6]} 9... Re8 {[%clk 0:02:59.6]}
10. O-O {[%clk 0:02:59]} 10... Nbd7 {[%clk 0:03:01.2]} 11. Bd2 {[%clk
0:02:54.6]} 11... Nf8 {[%clk 0:03:01.9]} 12. b4 {[%clk 0:02:45]} 12... Bd6
{[%clk 0:03:00.8]} 13. f3 {[%clk 0:02:40.7]} 13... Bc7 {[%clk 0:02:50.7]} 14.
Rc1 {[%clk 0:02:32.4]} 14... Ng6 {[%clk 0:02:48.9]} 15. Nxg6 {[%clk 0:02:21.4]}
15... hxg6 {[%clk 0:02:50.8]} 16. Qe2 {[%clk 0:02:06.7]} 16... Bf5 {[%clk
0:02:37.4]} 17. Bxf5 {[%clk 0:01:49.8]} 17... gxf5 {[%clk 0:02:38.3]} 18. b5
{[%clk 0:01:51.4]} 18... f4 {[%clk 0:02:33.5]} 19. bxc6 {[%clk 0:01:46.1]} 19...
bxc6 {[%clk 0:02:29]} 20. Qf2 {[%clk 0:01:46.9]} 20... fxe3 {[%clk 0:02:26.2]}
21. Bxe3 {[%clk 0:01:48]} 21... Qd6 {[%clk 0:02:27.6]} 22. g3 {[%clk 0:01:22.7]}
22... Qxa3 {[%clk 0:02:26.8]} 23. Bg5 {[%clk 0:01:10.4]} 23... Bd8 {[%clk
0:02:15.5]} 24. Rfe1 {[%clk 0:01:05.3]} 24... Rxe1+ {[%clk 0:01:55.9]} 25. Qxe1
{[%clk 0:01:06]} 25... Rb8 {[%clk 0:01:57.4]} 26. Ne2 {[%clk 0:00:59.8]} 26...
Qxf3 {[%clk 0:01:52.6]} 27. Rxc6 {[%clk 0:00:55.3]} 27... Ne4 {[%clk 0:01:26.9]}
28. Bxd8 {[%clk 0:00:50.1]} 28... Rxd8 {[%clk 0:01:27.8]} 29. Nf4 {[%clk
0:00:47.3]} 29... Rb8 {[%clk 0:01:18.5]} 30. Rc2 {[%clk 0:00:39.4]} 30... Qb3
{[%clk 0:00:42.4]} 31. Re2 {[%clk 0:00:39.9]} 31... Qc4 {[%clk 0:00:28.2]} 32.
Nxd5 {[%clk 0:00:29.1]} 32... Qxd4+ {[%clk 0:00:27.9]} 33. Re3 {[%clk
0:00:27.4]} 33... Rb3 {[%clk 0:00:12.9]} 34. Ne7+ {[%clk 0:00:18.6]} 34... Kf8
{[%clk 0:00:10.1]} 35. Nf5 {[%clk 0:00:19.6]} 35... Qc5 {[%clk 0:00:11.1]} 36.
Kg2 {[%clk 0:00:19.8]} 36... Rb2+ {[%clk 0:00:10.5]} 37. Kg1 {[%clk 0:00:17.7]}
37... g6 {[%clk 0:00:07.3]} 38. Nh4 {[%clk 0:00:12.4]} 38... Qc2 {[%clk
0:00:07.7]} 39. Rxe4 {[%clk 0:00:03.5]} 39... Qxh2+ {[%clk 0:00:08.4]} 0-1

[Event "*** Titled Tuesday Blitz"]
[Site "Chess.com"]
[Date "2019.04.02"]
[Round "1"]
[White "AryanTari"]
[Black "cholzan"]
[Result "1-0"]
[WhiteElo "2820"]
[BlackElo "2453"]
[TimeControl "180+2"]
[EndTime "14:08:47 PDT"]
[Termination "AryanTari won by resignation"]

1. Nf3 {[%clk 0:02:52.5]} 1... e6 {[%clk 0:02:59.5]} 2. g3 {[%clk 0:02:52.3]}
2... f5 {[%clk 0:02:59]} 3. Bg2 {[%clk 0:02:53]} 3... Nf6 {[%clk 0:03:00.1]} 4.
b3 {[%clk 0:02:53.4]} 4... Be7 {[%clk 0:03:01.4]} 5. Bb2 {[%clk 0:02:54.7]} 5...
d6 {[%clk 0:03:02.9]} 6. d4 {[%clk 0:02:54.8]} 6... O-O {[%clk 0:03:04.2]} 7.
O-O {[%clk 0:02:55.9]} 7... Qe8 {[%clk 0:03:05.6]} 8. c4 {[%clk 0:02:55.8]} 8...
a5 {[%clk 0:03:06.6]} 9. Nc3 {[%clk 0:02:56.6]} 9... Ne4 {[%clk 0:03:04.6]} 10.
Qc2 {[%clk 0:02:54]} 10... Qg6 {[%clk 0:03:05.1]} 11. Nxe4 {[%clk 0:02:47.8]}
11... fxe4 {[%clk 0:03:07]} 12. Nd2 {[%clk 0:02:49.4]} 12... d5 {[%clk
0:03:03.7]} 13. f3 {[%clk 0:02:43.2]} 13... e3 {[%clk 0:02:38.3]} 14. Qxg6
{[%clk 0:02:42.9]} 14... hxg6 {[%clk 0:02:40.2]} 15. Nb1 {[%clk 0:02:44.3]}
15... Bf6 {[%clk 0:02:39.1]} 16. f4 {[%clk 0:02:39.2]} 16... Nc6 {[%clk
0:02:38.4]} 17. Rd1 {[%clk 0:02:36.4]} 17... a4 {[%clk 0:02:38.8]} 18. cxd5
{[%clk 0:02:30.7]} 18... Nb4 {[%clk 0:02:38.3]} 19. Na3 {[%clk 0:02:29.8]} 19...
exd5 {[%clk 0:02:37.5]} 20. Bc3 {[%clk 0:02:25.9]} 20... Nc6 {[%clk 0:02:33.9]}
21. Bxd5+ {[%clk 0:02:25.9]} 21... Kh7 {[%clk 0:02:35.3]} 22. Nb5 {[%clk
0:02:24.8]} 22... Bg4 {[%clk 0:02:34.5]} 23. Kf1 {[%clk 0:02:22.4]} 23... Ne7
{[%clk 0:02:27.7]} 24. Bg2 {[%clk 0:02:09.9]} 24... c6 {[%clk 0:02:24.3]} 25.
Nd6 {[%clk 0:02:09.3]} 25... axb3 {[%clk 0:02:18.5]} 26. axb3 {[%clk 0:02:08.4]}
26... Rxa1 {[%clk 0:02:19.3]} 27. Rxa1 {[%clk 0:02:09.1]} 27... c5 {[%clk
0:02:20.5]} 28. Rd1 {[%clk 0:01:24.7]} 28... Ra8 {[%clk 0:02:12.8]} 29. h3
{[%clk 0:01:17]} 29... cxd4 {[%clk 0:02:11.4]} 30. Bxd4 {[%clk 0:01:15.1]} 30...
Bxd4 {[%clk 0:02:06.4]} 31. hxg4 {[%clk 0:01:16.3]} 31... Bc3 {[%clk 0:02:07.5]}
32. Bxb7 {[%clk 0:01:11.8]} 32... Ra2 {[%clk 0:02:07.9]} 33. Bf3 {[%clk
0:01:10.1]} 33... Rb2 {[%clk 0:02:00.9]} 34. Ne4 {[%clk 0:01:07.4]} 34... Bd2
{[%clk 0:01:09.5]} 35. Ng5+ {[%clk 0:00:53.8]} 35... Kg8 {[%clk 0:01:09.8]} 36.
Ra1 {[%clk 0:00:53.1]} 36... Rc2 {[%clk 0:01:10.7]} 37. Ra7 {[%clk 0:00:38.1]}
37... Bb4 {[%clk 0:01:00.6]} 38. Rb7 {[%clk 0:00:30.9]} 38... Bd6 {[%clk
0:01:01.6]} 39. b4 {[%clk 0:00:28.4]} 39... Rc8 {[%clk 0:01:01.2]} 40. b5 {[%clk
0:00:28]} 40... Rb8 {[%clk 0:01:02.4]} 41. Rd7 {[%clk 0:00:28.9]} 41... Bb4
{[%clk 0:00:59.5]} 42. b6 {[%clk 0:00:29.1]} 42... Kf8 {[%clk 0:00:54.5]} 43. b7
{[%clk 0:00:28.9]} 43... Ke8 {[%clk 0:00:55.9]} 44. Rc7 {[%clk 0:00:30.1]} 44...
Kd8 {[%clk 0:00:56.9]} 45. Ne6+ {[%clk 0:00:31.2]} 45... Ke8 {[%clk 0:00:58.3]}
46. Be4 {[%clk 0:00:25.9]} 46... Bd6 {[%clk 0:00:58.2]} 47. Rc4 {[%clk
0:00:26.2]} 47... Kf7 {[%clk 0:00:58.2]} 48. Ng5+ {[%clk 0:00:27.1]} 48... Kf6
{[%clk 0:00:59.4]} 49. Kg2 {[%clk 0:00:27.9]} 49... Ng8 {[%clk 0:00:50.8]} 50.
Ra4 {[%clk 0:00:28.2]} 50... Ne7 {[%clk 0:00:51.4]} 51. Ra6 {[%clk 0:00:28.7]}
1-0

[Event "*** Titled Tuesday Blitz"]
[Site "Chess.com"]
[Date "2019.04.02"]
[Round "1"]
[White "djogrodek1"]
[Black "aa175"]
[Result "1-0"]
[WhiteElo "2505"]
[BlackElo "1938"]
[TimeControl "180+2"]
[EndTime "14:08:51 PDT"]
[Termination "djogrodek1 won on time"]

1. e4 {[%clk 0:03:01.9]} 1... e5 {[%clk 0:02:55.7]} 2. Nf3 {[%clk 0:03:02.5]}
2... Nc6 {[%clk 0:02:53.9]} 3. Bc4 {[%clk 0:03:03.6]} 3... Nf6 {[%clk
0:02:48.4]} 4. d3 {[%clk 0:03:03.6]} 4... Bc5 {[%clk 0:02:48.4]} 5. O-O {[%clk
0:03:03.5]} 5... d6 {[%clk 0:02:49.7]} 6. c3 {[%clk 0:02:50.9]} 6... O-O {[%clk
0:02:48.8]} 7. h3 {[%clk 0:02:50.4]} 7... Be6 {[%clk 0:02:45.3]} 8. Nbd2 {[%clk
0:02:48]} 8... a6 {[%clk 0:02:38]} 9. a4 {[%clk 0:02:46.9]} 9... Qd7 {[%clk
0:02:18.1]} 10. b4 {[%clk 0:02:33.4]} 10... Ba7 {[%clk 0:02:16.1]} 11. Bxe6
{[%clk 0:02:34.1]} 11... Qxe6 {[%clk 0:02:09.9]} 12. Qc2 {[%clk 0:02:26.1]}
12... Nh5 {[%clk 0:01:58.7]} 13. Nc4 {[%clk 0:02:23.9]} 13... f5 {[%clk
0:01:47.2]} 14. Qe2 {[%clk 0:02:09.1]} 14... Ng3 {[%clk 0:01:39.5]} 15. Qd1
{[%clk 0:02:04.4]} 15... fxe4 {[%clk 0:01:36.2]} 16. Ng5 {[%clk 0:01:59.5]}
16... Qd5 {[%clk 0:01:19.7]} 17. Be3 {[%clk 0:01:14.9]} 17... Nxf1 {[%clk
0:01:08.1]} 18. Qxf1 {[%clk 0:01:14.3]} 18... exd3 {[%clk 0:01:05.4]} 19. Bxa7
{[%clk 0:01:10.5]} 19... Qxc4 {[%clk 0:01:02.7]} 20. Be3 {[%clk 0:01:09.5]}
20... Qxc3 {[%clk 0:00:59.2]} 21. Rc1 {[%clk 0:01:09.8]} 21... Qxb4 {[%clk
0:00:58.6]} 22. Qxd3 {[%clk 0:01:09.9]} 22... e4 {[%clk 0:00:49.5]} 23. Qd5+
{[%clk 0:01:04.8]} 23... Kh8 {[%clk 0:00:49.4]} 24. Nf7+ {[%clk 0:00:57.3]}
24... Rxf7 {[%clk 0:00:50]} 25. Qxf7 {[%clk 0:00:59.2]} 25... Rc8 {[%clk
0:00:43.6]} 26. Qd7 {[%clk 0:00:55.9]} 26... Rg8 {[%clk 0:00:20.4]} 27. Qxc7
{[%clk 0:00:54.5]} 27... Qxa4 {[%clk 0:00:18.7]} 28. Qxb7 {[%clk 0:00:54.1]}
28... Nd4 {[%clk 0:00:18.2]} 29. Rc8 {[%clk 0:00:46.7]} 29... Ne2+ {[%clk
0:00:13.6]} 30. Kh2 {[%clk 0:00:47.2]} 30... Qa2 {[%clk 0:00:10.2]} 31. Rxg8+
{[%clk 0:00:40.4]} 31... Qxg8 {[%clk 0:00:12.1]} 32. Qxa6 {[%clk 0:00:41.2]}
32... Nc3 {[%clk 0:00:06.5]} 33. Qxd6 {[%clk 0:00:38.7]} 33... h6 {[%clk
0:00:05.9]} 34. Bd4 {[%clk 0:00:38.3]} 34... Nb5 {[%clk 0:00:03.3]} 35. Qxh6+
{[%clk 0:00:38.5]} 35... Qh7 {[%clk 0:00:04.7]} 36. Bxg7+ {[%clk 0:00:39]} 36...
Kg8 {[%clk 0:00:05.9]} 37. Qxh7+ {[%clk 0:00:40.1]} 37... Kxh7 {[%clk
0:00:07.8]} 38. Bb2 {[%clk 0:00:41.5]} 38... Kg6 {[%clk 0:00:09]} 39. g4 {[%clk
0:00:40.7]} 39... Nd6 {[%clk 0:00:09.8]} 40. Kg3 {[%clk 0:00:41]} 40... Nc4
{[%clk 0:00:09.8]} 41. Bd4 {[%clk 0:00:41.1]} 41... Nd2 {[%clk 0:00:08.7]} 42.
Kf4 {[%clk 0:00:39.5]} 42... Nf3 {[%clk 0:00:04.2]} 43. Kxe4 {[%clk 0:00:37]}
43... Ng5+ {[%clk 0:00:05.1]} 44. Ke5 {[%clk 0:00:34.3]} 44... Nxh3 {[%clk
0:00:07]} 45. f4 {[%clk 0:00:35.4]} 1-0